bitfinex/quotes_ETHUSD_20250814
["timestamp","ask_amount","ask_price","bid_price","bid_amount"]
[1755187617953,1e-08,4591.2,4591.1,3.45372524]
[1755187618177,1e-08,4591.2,4591.1,0.1088]
[1755187618679,1e-08,4591.2,4591.1,2.28692724]
[1755187619378,1e-08,4591.2,4591.1,3.17912724]
[1755187619788,0.90620001,4591.2,4588.6,0.60463614]
[1755187619937,0.9062,4591.1,4588.5,0.4557]
[1755187620142,0.9062,4591.0,4588.8,2.17921896]
[1755187620444,2.17827951,4590.8,4588.9,2.17917147]
[1755187620687,1e-08,4591.2,4588.7,3.896]
[1755187620867,1e-08,4591.2,4589.6,2.17883911]
[1755187621177,1e-08,4591.2,4589.7,3.896]
[1755187621384,1e-08,4591.2,4589.8,3.02178744]
[1755187621541,1e-08,4591.2,4590.9,2.17819988]
[1755187621739,1e-08,4591.2,4591.1,5.17812724]
[1755187622387,1e-08,4591.2,4591.1,9.96932724]
[1755187622570,1e-08,4591.2,4591.1,7.28507995]
[1755187622773,1e-08,4591.2,4591.1,11.18207995]
[1755187622990,0.4557,4594.1,4591.2,0.55]
[1755187623162,0.4557,4594.1,4593.2,2.17709672]
[1755187623392,0.4557,4594.1,4592.2,3.0]
[1755187623393,0.4557,4594.1,4594.0,2.17675228]
[1755187623712,2.17602373,4595.6,4593.9,2.17679966]
[1755187623713,0.4505,4595.2,4593.9,2.17679966]
[1755187623916,0.4505,4595.2,4594.0,3.905]
[1755187624212,0.4557,4595.3,4594.1,3.0]
[1755187624417,0.4505,4595.2,4594.1,6.906]
[1755187624718,0.4557,4595.3,4594.1,6.906]
[1755187624927,0.4557,4595.3,4595.2,2.17618384]
[1755187625086,0.002,4595.5,4593.5,0.4413]
[1755187625291,0.9062,4595.3,4593.6,0.60692678]
[1755187625478,0.4557,4595.2,4593.8,3.0]
[1755187625673,0.002,4594.6,4593.0,0.0105]
[1755187625901,0.4577,4594.6,4593.0,0.0105]
[1755187626106,0.4505,4594.5,4593.0,0.0105]
[1755187626277,0.4557,4594.4,4593.1,3.906]
[1755187626478,0.4557,4594.4,4593.6,2.17693244]
[1755187626674,0.4557,4594.4,4593.5,3.905]
[1755187627187,0.4557,4594.4,4593.6,2.17693259]
[1755187627415,0.4505,4594.3,4593.0,0.0105]
[1755187627613,2.17693782,4593.7,4593.0,0.0105]
[1755187627774,2.17693782,4593.7,4591.2,2.17805479]
[1755187627775,0.55,4593.5,4590.7,3.904]
[1755187627977,0.9062,4593.4,4590.7,6.08230337]
[1755187628201,0.9062,4593.3,4591.0,2.1781559]
[1755187628415,0.4557,4593.2,4591.9,2.17771428]
[1755187628617,0.9062,4593.2,4592.2,2.17757638]
[1755187628784,0.9062,4593.2,4590.3,3.0]
[1755187628984,2.17734557,4592.8,4590.4,0.51785347]
[1755187629212,0.9062,4592.7,4590.7,3.0]
[1755187629526,2.17746325,4592.5,4591.4,2.17794202]
[1755187629829,0.4557,4592.4,4591.8,0.1088]
[1755187629980,0.4557,4592.8,4591.6,3.0]
[1755187630178,0.4557,4592.8,4592.5,0.1088]
[1755187630394,0.1088,4593.4,4592.7,2.17732166]
[1755187630592,0.1088,4593.4,4593.0,2.17722047]
[1755187630818,0.1088,4593.4,4591.8,3.0]
[1755187630819,2.1766705,4594.2,4592.5,3.902]
[1755187631023,0.1088,4593.7,4593.0,0.1088]
[1755187631441,0.1088,4593.7,4592.4,3.901]
[1755187631442,0.9062,4593.6,4592.4,3.901]
[1755187631742,0.1088,4593.4,4592.8,0.1088]
[1755187632120,0.1088,4593.4,4592.1,3.0]
[1755187632316,2.28584545,4593.4,4592.5,0.1088]
[1755187632728,0.31920455,4593.3,4592.5,2.28622291]
[1755187632934,0.31920455,4593.3,4592.6,2.17741353]
[1755187633123,0.31920455,4593.3,4592.5,0.1088]
[1755187633319,2.17736263,4592.8,4592.5,0.1088]
[1755187633545,0.1088,4592.6,4592.0,0.1088]
[1755187634046,0.9062,4592.5,4590.1,2.1785696]
[1755187634206,0.1088,4592.3,4591.4,0.1088]
[1755187634407,0.4505,4592.2,4591.4,0.1088]
[1755187634852,0.1088,4592.3,4590.6,5.17835409]
[1755187635048,0.1088,4592.3,4592.2,2.1776055]
[1755187635219,0.1088,4592.3,4591.8,2.1777952]
[1755187635548,0.1088,4592.3,4592.2,2.1776055]
[1755187635746,0.4505,4592.8,4592.3,2.1775312]
[1755187636135,0.4505,4592.8,4592.2,0.1088]
[1755187636334,0.1088,4592.9,4592.2,0.1088]
[1755187636535,0.5645,4593.5,4592.7,2.2861289]
[1755187636759,0.5645,4593.5,4592.9,2.1772672]
[1755187636935,0.5645,4593.5,4592.7,0.1088]
[1755187637112,0.5645,4593.5,4592.7,2.28613102]
[1755187637449,0.5645,4593.5,4592.7,0.1088]
[1755187637627,0.1088,4593.2,4592.5,0.1088]
[1755187637817,0.4557,4593.1,4592.5,0.1088]
[1755187638017,1.0005,4593.0,4591.4,2.17797608]
[1755187638241,2.17746043,4592.6,4591.4,2.17797782]
[1755187638551,2.17751066,4592.4,4591.2,2.17807464]
[1755187638860,2.17751066,4592.4,4591.3,2.17803162]
[1755187639148,3.08366395,4592.5,4591.4,3.88]
[1755187639360,3.08366395,4592.5,4591.3,6.0560226]
[1755187639712,0.9062,4592.5,4591.4,2.17797112]
[1755187639949,3.08366448,4592.5,4591.5,2.17790511]
[1755187640150,0.9062,4592.5,4591.6,2.17788849]
[1755187640568,2.63321066,4592.4,4589.8,2.28740509]
[1755187640724,2.63324842,4592.4,4590.0,2.17864923]
[1755187641067,0.4505,4592.5,4591.0,2.17815649]
[1755187641215,2.1776083,4592.2,4591.3,2.17803033]
[1755187641415,2.17766078,4592.1,4591.2,2.17807195]
[1755187641615,0.9062,4592.3,4591.1,2.17812724]
[1755187641917,0.9062,4592.3,4591.1,0.21781272]
[1755187642150,3.08376669,4592.3,4591.4,2.17797309]
[1755187642457,0.9062,4592.3,4591.5,2.1779163]
[1755187642763,0.9062,4592.3,4591.6,2.1778892]
[1755187643058,0.9062,4592.3,4591.5,2.17789108]
[1755187643552,0.9062,4592.3,4589.6,2.17882696]
[1755187643553,0.9062,4592.3,4590.9,3.0]
[1755187643757,0.9062,4592.3,4591.7,2.17782748]
[1755187643918,0.4677,4592.8,4591.9,2.17773265]
[1755187644259,0.4677,4592.8,4591.3,3.0]
[1755187644418,0.4677,4592.8,4592.1,2.17761051]
[1755187644619,0.4677,4592.8,4591.4,2.17798492]
[1755187644620,0.4677,4592.8,4592.2,2.17760542]
[1755187644915,0.4677,4592.8,4592.0,2.17769642]
[1755187645153,2.64502867,4592.8,4591.8,2.17775327]
[1755187645355,3.17284286,4592.8,4591.8,2.17775327]
[1755187645536,3.17284286,4592.8,4591.9,2.17772923]
[1755187645965,2.17737685,4592.7,4591.8,2.17778904]
[1755187646282,3.17284528,4592.8,4591.9,2.17774217]
[1755187646477,3.17284528,4592.8,4591.6,2.17789006]
[1755187646478,3.17284528,4592.8,4591.8,2.17778296]
[1755187646682,3.17284528,4592.8,4591.9,2.17773273]
[1755187646896,2.7579656,4592.7,4590.7,2.64167493]
[1755187647047,2.17755453,4592.4,4591.5,2.17792142]
[1755187647245,1.50219717,4592.7,4590.5,2.17841193]
[1755187647246,0.4677,4592.3,4590.5,2.17841193]
[1755187647494,2.1777161,4592.0,4591.1,6.02311886]
[1755187647653,0.9216,4592.3,4590.9,2.17817945]
[1755187647848,2.17774362,4592.0,4591.1,2.17812587]
[1755187648049,0.1088,4591.9,4591.3,0.1088]
[1755187648466,0.1088,4591.9,4591.4,2.17798492]
[1755187648708,0.1088,4591.9,4591.3,0.1088]
[1755187648862,0.1088,4591.9,4591.5,2.17793299]
[1755187649044,0.1088,4591.9,4591.3,0.1088]
[1755187650391,0.1088,4591.9,4591.6,2.17788677]
[1755187650588,0.9216,4592.3,4591.6,2.17788677]
[1755187650589,0.1088,4592.2,4591.6,0.1088]
[1755187650790,2.1774091,4592.7,4591.0,2.17813813]
[1755187650964,0.1088,4592.6,4592.0,0.1088]
[1755187651648,0.002,4592.9,4592.1,2.17763919]
[1755187651861,2.17742485,4592.6,4592.0,0.1088]
[1755187652080,0.5785,4592.9,4592.0,0.1088]
[1755187652284,2.17750553,4592.5,4592.0,0.1088]
[1755187652518,2.17816658,4591.1,4591.0,0.1088]
[1755187652659,2.17816658,4591.1,4590.1,2.17956178]
[1755187652660,0.9216,4591.1,4590.1,0.001]
[1755187652853,0.1088,4590.4,4590.1,0.001]
[1755187653793,0.1088,4590.4,4590.3,2.17850685]
[1755187654001,0.55,4591.5,4590.1,0.001]
[1755187654172,0.4677,4590.4,4590.1,0.001]
[1755187654493,2.17855431,4590.2,4590.1,0.001]
[1755187654790,3.10015431,4590.2,4590.1,0.001]
[1755187655491,0.9216,4590.2,4590.1,0.001]
[1755187655656,0.4677,4590.2,4590.1,0.001]
[1755187655978,0.9216,4590.9,4590.1,0.001]
[1755187656153,2.17849337,4590.4,4590.1,0.001]
[1755187656359,4.7406,4590.9,4590.1,0.001]
[1755187656695,2.17836448,4590.6,4590.1,0.001]
[1755187656900,2.17845939,4590.4,4588.7,0.001]
[1755187657117,0.55,4589.6,4588.7,0.001]
[1755187657397,0.55,4589.4,4588.7,0.001]
[1755187657564,0.9216,4589.5,4588.7,0.001]
[1755187657764,2.17914414,4589.0,4588.7,0.001]
[1755187657968,2.17869801,4589.9,4587.7,2.17969859]
[1755187657969,3.0,4591.2,4587.7,0.001]
[1755187658301,2.18053534,4586.1,4584.7,0.4634]
[1755187658466,3.837,4586.6,4584.7,0.4634]
[1755187658877,2.18064985,4585.8,4584.7,0.4634]
[1755187659195,0.9216,4586.1,4584.0,0.4634]
[1755187659358,2.18088135,4585.4,4584.2,2.18136902]
[1755187659669,2.18063388,4585.9,4584.3,0.2644769]
[1755187659865,0.4677,4586.1,4584.1,0.02181453]
[1755187660077,3.834,4586.4,4584.4,2.18127616]
[1755187660290,3.834,4586.4,4583.9,3.0]
[1755187660291,30.9216,4586.3,4583.2,0.4634]
[1755187660453,0.9216,4586.3,4584.0,0.4634]
[1755187660670,3.10201816,4586.3,4584.9,2.18104509]
[1755187660917,2.837,4586.0,4578.9,0.4634]
[1755187661052,2.18145923,4584.1,4580.4,0.4634]
[1755187661257,0.55,4583.7,4580.4,0.4634]
[1755187661466,30.9216,4583.6,4580.5,2.18314899]
[1755187661680,0.55,4583.4,4580.3,0.10421227]
[1755187661959,0.55,4583.0,4580.0,0.003]
[1755187662256,0.55,4581.8,4581.7,1e-08]
[1755187662455,31.7575379,4581.8,4581.7,1e-08]
[1755187662679,31.91929217,4581.8,4581.7,1e-08]
[1755187662887,35.55535427,4581.8,4581.7,1e-08]
[1755187663069,2.18393063,4578.9,4578.8,1e-08]
[1755187663279,3.0,4578.7,4577.0,0.05]
[1755187663483,2.18502818,4576.6,4576.1,0.16468801]
[1755187663669,7.09862818,4576.6,4576.1,0.16468801]
[1755187663863,35.42997133,4576.6,4575.9,0.003]
[1755187664066,0.4677,4576.6,4575.9,0.003]
[1755187664309,0.16553565,4578.9,4575.9,0.003]
[1755187664519,0.16553565,4578.9,4576.0,0.4634]
[1755187664654,2.415,4580.0,4576.1,0.02185266]
[1755187665006,2.415,4580.0,4576.2,0.9202]
[1755187665007,2.1836445,4579.5,4576.2,0.9202]
[1755187665220,0.55,4578.4,4575.9,0.003]
[1755187665411,30.9216,4578.3,4576.0,2.18531468]
[1755187665703,0.55,4575.3,4571.8,1e-08]
[1755187665858,0.55,4575.3,4568.9,0.4634]
[1755187665859,2.18751367,4571.4,4569.0,0.4568]
[1755187666207,2.18751367,4571.4,4566.2,0.1]
[1755187666208,2.03034989,4569.7,4568.3,0.113976]
[1755187666407,2.03034989,4569.7,4565.7,0.1]
[1755187666408,2.18794173,4570.6,4568.8,1.75408537]
[1755187666554,0.02185282,4570.5,4569.1,2.18857953]
[1755187666761,2.7376344,4571.2,4568.8,2.21748537]
[1755187666762,0.4677,4571.3,4568.8,1.75408537]
[1755187667198,4.79,4572.5,4568.8,1.75408537]
[1755187667458,0.9216,4572.4,4570.2,2.18805134]
[1755187667660,2.1859304,4574.8,4570.3,0.9202]
[1755187667854,0.4677,4574.8,4570.4,0.94207992]
[1755187668094,0.4677,4574.8,4570.5,20.73409]
[1755187668296,0.16080468,4575.8,4572.3,2.18705926]
[1755187668500,0.4677,4576.0,4572.4,4.16077628]
[1755187668708,0.4677,4575.7,4572.4,3.68210593]
[1755187669208,0.55,4574.5,4572.4,0.21870593]
[1755187669356,35.7786,4574.4,4570.0,0.4634]
[1755187669705,0.55,4573.0,4568.8,1.75408537]
[1755187669853,2.18760718,4571.3,4568.8,1.75408537]
[1755187670059,0.55,4571.1,4569.1,2.18859049]
[1755187670418,0.55,4571.1,4568.8,1.75408537]
[1755187670419,30.0,4571.0,4569.2,5.238]
[1755187670704,0.55,4570.6,4569.3,0.5238]
[1755187670857,0.9216,4570.9,4568.8,1.75408537]
[1755187670858,0.9216,4570.9,4570.1,0.001]
[1755187671061,0.55,4570.8,4570.1,0.001]
[1755187671269,0.4677,4571.7,4570.1,0.001]
[1755187671507,0.656724,4572.7,4570.1,0.001]
[1755187671795,0.4539,4572.9,4572.7,2.18686057]
[1755187671957,0.4353,4575.6,4572.9,3.0]
[1755187672282,0.4353,4576.7,4573.3,3.0]
[1755187672486,0.4353,4576.7,4573.5,3.0]
[1755187672799,0.4353,4576.7,4573.1,3.0]
[1755187672800,19.81389,4576.4,4572.8,0.21868606]
[1755187673116,3.0,4575.3,4572.0,2.18717898]
[1755187673458,0.55,4574.9,4572.7,2.18685797]
[1755187673597,30.4353,4575.2,4572.5,2.18695574]
[1755187673598,2.18638637,4573.8,4572.5,2.18695574]
[1755187673769,2.18638637,4573.8,4571.4,2.18751367]
[1755187673770,0.55,4573.8,4572.4,2.1870036]
[1755187673971,2.18657097,4573.4,4571.7,2.18737012]
[1755187674169,5.18574374,4575.2,4571.2,3.0]
[1755187674170,0.55,4574.0,4571.8,0.21873701]
[1755187674366,0.4588,4574.4,4571.6,3.4405]
[1755187674707,0.4588,4574.4,4573.4,2.18654336]
[1755187674913,0.1096,4573.5,4572.7,0.1096]
[1755187675215,2.18674983,4573.0,4572.1,0.1096]
[1755187675370,2.18674983,4573.0,4570.8,4.955]
[1755187675371,2.18710224,4572.3,4571.0,2.18769545]
[1755187675569,0.1096,4571.9,4571.2,0.74266955]
[1755187675905,0.1096,4571.9,4571.0,0.1096]
[1755187676127,0.1096,4572.0,4571.4,0.1096]
[1755187676332,2.18702099,4572.5,4571.2,2.18760076]
[1755187676643,0.4353,4573.2,4570.0,3.0]
[1755187676644,2.73670048,4573.1,4570.5,0.001]
[1755187676940,0.55,4572.3,4570.5,0.001]
[1755187677098,2.18786926,4570.7,4570.5,0.001]
[1755187677299,0.9853,4570.6,4570.5,0.001]
[1755187677520,3.0,4572.3,4570.5,0.001]
[1755187677521,0.55,4571.3,4570.5,0.001]
[1755187677717,0.55,4571.1,4570.5,0.001]
[1755187677921,0.55,4570.6,4570.5,0.001]
[1755187678152,1.4441,4570.6,4570.5,0.001]
[1755187678500,1.4441,4570.6,4568.8,1.75408537]
[1755187678700,0.4353,4572.1,4569.0,0.95788662]
[1755187678918,2.18716536,4572.2,4569.1,0.936]
[1755187679153,2.18725158,4572.0,4569.2,6.81342952]
[1755187679358,2.18665267,4573.2,4569.6,2.18837535]
[1755187679664,30.0,4573.1,4570.0,2.18816034]
[1755187679950,2.18730877,4571.9,4569.9,2.18823168]
[1755187680150,2.18730877,4571.9,4569.1,2.18860397]
[1755187680151,0.4353,4572.2,4569.2,0.4405]
[1755187680361,0.4353,4571.8,4568.5,4.941]
[1755187680518,0.4588,4572.1,4569.3,0.46238519]
[1755187680720,0.55,4571.7,4568.2,0.4405]
[1755187680958,0.55,4571.4,4568.2,0.4405]
[1755187681191,38.8421,4571.6,4568.2,0.4405]
[1755187681192,3.55,4571.2,4569.2,2.18854934]
[1755187681401,0.8941,4571.3,4568.8,2.69008537]
[1755187681604,2.18799214,4570.5,4568.8,1.75408537]
[1755187681895,0.65409921,4570.4,4568.8,1.75408537]
[1755187682042,0.4353,4570.4,4568.8,1.75408537]
[1755187682388,2.18785557,4570.7,4565.2,0.656726]
[1755187682389,2.19034769,4565.5,4565.2,0.656726]
[1755187682692,3.55,4569.0,4564.0,0.01554832]
[1755187682693,2.19049117,4565.2,4564.0,0.01554832]
[1755187682980,0.55,4565.8,4564.3,0.4405]
[1755187683275,0.4588,4566.7,4564.0,0.01554832]
[1755187683276,2.18944998,4567.4,4564.6,0.936]
[1755187683492,2.18974227,4566.8,4564.6,0.4955]
[1755187683693,0.4353,4567.7,4565.0,0.4405]
[1755187683837,0.55,4568.4,4565.0,0.936]
[1755187684038,0.1635511,4569.0,4566.7,2.18975014]
[1755187684238,0.1635511,4569.0,4566.8,0.936]
[1755187684536,0.1635511,4569.0,4566.9,0.95789669]
[1755187684789,0.1635511,4569.0,4566.5,5.001]
[1755187684790,0.1635511,4569.0,4568.8,2.18874871]
[1755187684995,0.1635511,4569.0,4567.2,3.0]
[1755187684996,2.18708308,4572.3,4568.9,0.936]
[1755187685298,2.18749141,4571.5,4570.0,2.18813956]
[1755187685474,0.30811831,4572.3,4569.1,3.0]
[1755187685672,0.30811831,4572.3,4567.3,22.00332422]
[1755187685673,0.8941,4572.2,4566.7,5.246]
[1755187685833,3.0,4571.1,4567.7,0.4405]
[1755187686037,3.0,4571.1,4566.7,5.246]
[1755187686038,3.55,4570.1,4566.7,10.253]
[1755187686247,0.55,4569.6,4566.7,5.246]
[1755187686488,0.1096,4567.6,4566.9,0.1096]
[1755187686689,30.8941,4569.5,4565.7,0.936]
[1755187686690,2.18981143,4566.7,4565.7,0.936]
[1755187686985,0.1096,4566.8,4566.0,0.1096]
[1755187687136,0.4588,4569.8,4566.1,0.95790052]
[1755187687477,2.18789655,4570.6,4566.3,3.0]
[1755187687679,2.18753986,4571.4,4566.7,3.0]
[1755187687843,4.942,4572.9,4566.6,19.81389]
[1755187687844,2.18760938,4571.2,4567.1,0.55]
[1755187688047,0.62756128,4571.7,4567.3,3.0]
[1755187688048,0.19226128,4571.6,4567.3,3.0]
[1755187688395,0.76190102,4576.3,4567.2,5.94]
[1755187688396,0.19226128,4572.7,4568.5,3.55]
[1755187688538,2.64526143,4573.6,4569.5,3.0]
[1755187688739,2.64526143,4573.6,4569.4,19.81389]
[1755187688740,2.18655704,4573.4,4569.6,0.936]
[1755187688974,2.18665267,4573.2,4569.7,3.010989]
[1755187689180,5.1867483,4573.0,4569.7,0.936]
[1755187689476,2.18698742,4572.5,4569.6,0.936]
[1755187689776,2.18698742,4572.5,4569.7,0.889]
[1755187690072,2.18773961,4571.0,4569.8,5.004]
[1755187690238,2.18831126,4569.8,4569.6,0.936]
[1755187690439,2.18831126,4569.8,4565.8,4.91916647]
[1755187690440,2.18834422,4569.7,4568.8,4.9885]
[1755187690676,2.18834448,4569.7,4568.9,5.0964]
[1755187690880,2.18741797,4571.6,4568.9,5.0964]
[1755187690881,0.55,4571.5,4568.9,5.0964]
[1755187691103,0.55,4571.0,4567.9,0.4405]
[1755187691281,2.18789655,4570.6,4567.9,0.4405]
[1755187691442,2.18847113,4569.4,4566.9,0.4405]
[1755187691643,3.55,4569.2,4565.9,0.4405]
[1755187691982,0.55,4568.1,4565.6,0.4955]
[1755187692179,0.55,4567.7,4565.6,0.4955]
[1755187692393,2.18890522,4568.5,4565.6,0.4955]
[1755187692394,0.19495891,4567.6,4565.7,0.4405]
[1755187692593,0.19495891,4567.5,4565.8,0.4955]
[1755187692795,2.19011466,4566.0,4565.8,0.4955]
[1755187692965,0.55,4568.3,4565.7,0.4405]
[1755187693164,2.18914185,4568.0,4565.7,0.4405]
[1755187693488,3.4588,4568.8,4565.7,0.4405]
[1755187693489,0.19619015,4567.9,4565.7,0.4405]
[1755187693691,0.55,4569.1,4565.7,0.4405]
[1755187693692,0.19619015,4567.8,4565.8,3.4955]
[1755187693889,0.19619015,4567.7,4567.5,2.18936488]
[1755187694092,0.19619015,4569.3,4567.6,0.936]
[1755187694293,0.19619015,4569.4,4567.7,0.936]
[1755187694464,0.19619015,4570.4,4567.9,3.0]
[1755187694673,3.0,4571.3,4568.1,3.0]
[1755187694674,0.19686223,4570.3,4568.1,3.0]
[1755187694867,2.18783741,4570.8,4569.2,2.18856583]
[1755187695056,0.19686223,4571.2,4569.3,0.936]
[1755187695256,0.19686223,4572.2,4569.3,0.936]
[1755187695472,2.1875542,4571.4,4569.4,2.18847113]
[1755187695670,0.19686223,4572.0,4569.5,0.936]
[1755187695900,0.19686223,4571.9,4570.8,2.18777809]
[1755187696055,2.18667045,4573.2,4570.9,0.02187752]
[1755187696261,0.19686223,4573.3,4570.9,2.18775295]
[1755187696486,0.19686223,4573.6,4571.4,2.1875088]
[1755187696692,0.43539239,4573.5,4571.0,4.965]
[1755187696995,0.002,4573.7,4571.1,3.936]
[1755187697297,0.1096,4572.7,4572.1,0.1096]
[1755187697495,0.1096,4573.0,4572.4,0.1096]
[1755187698197,2.18646143,4573.6,4571.8,0.936]
[1755187698397,0.1096,4573.5,4572.8,0.1096]
[1755187698895,2.29612672,4573.5,4572.5,2.18698197]
[1755187699058,2.29612672,4573.5,4571.8,0.936]
[1755187699059,0.1096,4573.5,4572.8,0.1096]
[1755187699461,0.002,4573.7,4569.1,2.18861482]
[1755187699660,0.55,4573.4,4570.8,0.4405]
[1755187699885,0.8941,4573.6,4571.0,2.18767452]
[1755187700091,2.18691692,4572.7,4571.5,2.18743723]
[1755187700399,2.18699,4572.5,4571.5,2.18745466]
[1755187700701,2.18663047,4573.3,4571.4,0.936]
[1755187701010,2.18693959,4572.6,4571.6,2.18740451]
[1755187701161,2.18646143,4573.6,4571.4,0.936]
[1755187701360,30.0,4573.5,4571.4,3.12348753]
[1755187701590,0.19733564,4573.4,4571.4,0.936]
[1755187701787,0.19733564,4573.4,4571.6,2.18741419]
[1755187702058,2.18660485,4573.3,4571.4,3.12350301]
[1755187702261,2.18681611,4572.9,4571.4,0.936]
[1755187702483,0.19733564,4573.5,4571.7,2.18737012]
[1755187702686,0.002,4573.7,4572.5,2.18697832]
[1755187702875,2.18646143,4573.6,4572.3,2.18705526]
[1755187703071,2.18667655,4573.2,4572.2,2.18710828]
[1755187703272,2.18680611,4572.9,4572.0,2.18722094]
[1755187703503,0.21884614,4573.6,4571.8,0.4322]
[1755187703804,0.002,4573.7,4571.8,0.4322]
[1755187704111,0.002,4573.7,4572.1,2.18717851]
[1755187704288,0.002,4573.7,4571.8,0.4322]
[1755187705004,2.18655908,4573.4,4572.5,2.18696744]
[1755187705203,0.002,4573.7,4571.9,2.18727443]
[1755187705377,0.002,4573.7,4572.1,2.18717154]
[1755187705577,0.002,4573.7,4571.9,0.02187274]
[1755187705991,2.18647154,4573.6,4572.7,2.18687871]
[1755187706368,2.18841366,4573.7,4572.8,2.18684337]
[1755187706707,2.18841366,4573.7,4571.6,3.0]
[1755187706708,0.002,4573.7,4572.5,0.4322]
[1755187706866,0.002,4573.7,4572.6,2.18693959]
[1755187707068,0.2208274,4573.7,4572.5,0.4322]
[1755187707263,0.002,4573.7,4572.5,0.4322]
[1755187707501,0.002,4573.7,4573.2,2.18664153]
[1755187707777,0.002,4573.7,4573.2,0.8998]
[1755187707979,0.002,4573.7,4573.6,2.18646143]
[1755187709007,0.002,4573.7,4573.6,3.08626143]
[1755187709503,0.002,4573.7,4573.6,3.19586143]
[1755187709905,0.002,4573.7,4573.6,0.65215311]
[1755187710208,0.002,4573.7,4573.6,7.56201454]
[1755187710407,1e-08,4573.7,4573.6,10.67161454]
[1755187710710,1e-08,4573.7,4573.6,5.83861454]
[1755187710914,0.56899584,4578.4,4574.3,0.1]
[1755187711142,0.56899584,4578.4,4575.6,0.55]
[1755187711283,0.4735,4578.7,4578.1,0.1096]
[1755187711494,2.18467134,4577.4,4575.7,0.4676]
[1755187711695,2.18457495,4577.6,4577.2,0.1096]
[1755187711897,0.4735,4577.5,4575.7,0.4676]
[1755187712214,30.0,4577.4,4574.3,0.4676]
[1755187712398,0.9279,4577.5,4574.4,3.02186079]
[1755187712721,0.4735,4577.5,4575.1,2.18574457]
[1755187713010,0.4735,4577.5,4575.2,0.8998]
[1755187713210,30.0,4577.4,4574.5,0.4322]
[1755187713510,0.4735,4578.0,4574.9,2.18584012]
[1755187713714,0.4735,4578.0,4574.5,0.74079084]
[1755187713715,2.18446426,4577.8,4576.7,2.18495577]
[1755187714019,0.4735,4578.0,4577.1,2.18478916]
[1755187714169,2.18397978,4578.8,4577.5,2.18456846]
[1755187714369,0.4735,4578.7,4575.8,0.4676]
[1755187714577,2.18407373,4578.6,4574.9,0.4676]
[1755187714785,0.55,4578.3,4575.0,3.0]
[1755187714986,3.9279,4578.5,4575.1,3.0]
[1755187714987,30.9279,4578.2,4575.1,3.0]
[1755187715287,30.9279,4578.2,4575.0,3.60857074]
[1755187715288,0.9279,4578.2,4575.4,2.18560125]
[1755187715486,0.9279,4578.2,4575.7,3.0]
[1755187715487,3.11220327,4578.2,4575.7,3.0]
[1755187715690,0.9279,4578.2,4576.7,2.18497395]
[1755187715889,0.4735,4578.2,4577.6,2.18451692]
[1755187716101,0.4735,4578.2,4575.3,3.0]
[1755187716102,0.4735,4579.0,4576.4,3.02185123]
[1755187716435,0.4735,4579.0,4576.3,0.4676]
[1755187716436,2.18393063,4578.9,4576.3,0.4676]
[1755187716733,2.18429403,4578.2,4577.0,2.1847898]
[1755187716941,0.4735,4578.8,4576.3,0.4676]
[1755187716942,2.18412981,4578.5,4577.1,2.18477984]
[1755187717074,0.4735,4578.8,4576.4,3.0]
[1755187717403,2.18402603,4578.7,4576.4,5.18511677]
[1755187717608,0.002,4579.2,4578.4,2.18416041]
[1755187717781,0.002,4579.2,4578.1,2.18428064]
[1755187717978,0.002,4579.2,4577.2,0.4676]
[1755187718383,0.002,4579.2,4577.4,2.1846463]
[1755187718583,0.002,4579.2,4577.2,0.4676]
[1755187718780,0.4735,4579.1,4572.9,0.1]
[1755187719086,0.4735,4579.1,4571.3,5.242]
[1755187719087,0.55,4578.9,4571.3,5.242]
[1755187719441,3.0,4577.7,4572.9,0.4676]
[1755187719603,3.0,4577.5,4573.0,0.4322]
[1755187719800,2.18569096,4575.3,4573.0,0.4322]
[1755187720124,3.0,4577.3,4573.0,0.4322]
[1755187720125,5.242,4576.3,4573.2,3.0]
[1755187720427,5.242,4576.3,4572.4,19.83351307]
[1755187720428,0.4735,4576.7,4573.4,0.55]
[1755187720611,0.4735,4576.7,4574.9,2.18579548]
[1755187720932,0.4735,4576.7,4572.6,0.001]
[1755187720933,0.55,4576.5,4573.1,0.4676]
[1755187721144,0.55,4576.3,4573.1,0.4676]
[1755187721296,2.18570302,4575.2,4573.7,2.18638415]
[1755187721627,0.4735,4575.3,4574.2,2.18616246]
[1755187721833,2.18530933,4576.1,4571.5,2.18744942]
[1755187721834,3.0,4576.1,4571.5,2.18744942]
[1755187721984,2.18624496,4574.1,4572.2,0.4676]
[1755187722190,0.4735,4574.8,4572.2,0.4676]
[1755187722731,0.4544,4574.7,4573.4,2.18654684]
[1755187722914,0.1096,4574.3,4573.6,0.1096]
[1755187723224,0.1096,4574.5,4573.9,0.1096]
[1755187723743,0.4735,4574.4,4573.0,2.18674606]
[1755187723907,0.4735,4574.4,4572.6,0.001]
[1755187724085,2.18622242,4574.1,4572.6,0.001]
[1755187724287,5.2795,4574.0,4572.6,0.001]
[1755187724485,2.18657128,4573.4,4572.6,0.001]
[1755187724727,0.4735,4574.0,4572.6,0.001]
[1755187725133,4.797,4574.5,4572.6,0.001]
[1755187725427,0.9279,4574.6,4572.6,0.001]
[1755187725428,0.4735,4574.6,4572.7,2.18689177]
[1755187725595,0.4735,4574.6,4572.6,0.21980421]
[1755187725790,0.4544,4575.4,4572.7,0.02186891]
[1755187725995,4.789,4575.3,4572.9,2.18679612]
[1755187726326,0.9279,4575.4,4572.6,3.21980421]
[1755187726530,0.9279,4575.4,4572.8,5.18684394]
[1755187726715,5.242,4575.6,4572.9,3.92166796]
[1755187726917,5.242,4575.6,4573.6,2.18642204]
[1755187727117,2.18555349,4575.5,4574.4,2.18607752]